Cogmind - Beta 13 X1 @@@ ROGUE MODE // 2023.07.06 @ 21:11:40 Player: LU-1G1 Result: Escaped! Performance ------------- Evolutions (9) 4500 Regions Visited (15) 3000 Robots Destroyed (62) 310 Value Destroyed (2697) 2697 Prototype IDs (15) 300 Alien Tech Used (2) 400 Bonus (4620) 4620 TOTAL SCORE: 15827 Bonus ------- Met Warlord at Base 500 MAIN.C Attacked Warlord 500 Warlord Defense Kills 620 Win 3000 Cogmind --------- Core Integrity 1380/1600 Matter 168/300 Energy 697/700 System Corruption 0% Temperature Cool (6) Movement Flying (105) Ox1 Location To Epsilon Eridani Parts ------- > --- POWER (2) -------- Vortex Chain Reactor > --- PROPULSION (8) --- Field Propulsion Drive Q-thruster Q-thruster Q-thruster Q-thruster Q-thruster > --- UTILITY (12) ----- Experimental Heat Sink Medium Storage Unit Experimental Optical Array Advanced Signal Interpreter Improved System Shield > --- WEAPON (3) ------- Vortex Lance Vortex Lance Vortex Lance > --- INVENTORY (10) --- Advanced Cooling System Improved Sensor Array RU-N14's Throwing Claymores v3 (10) RU-N14's Throwing Claymores v3 (10) RU-N14's Throwing Claymores v3 (10) RU-N14's Throwing Claymores v3 (8) Peak State ------------ > --- POWER ------------ Vortex Chain Reactor > --- PROPULSION ------- Centrium Wheel Centrium Wheel Field Propulsion Drive Q-thruster Q-thruster Q-thruster Q-thruster Q-thruster > --- UTILITY ---------- Advanced Cooling System Huge Storage Unit Experimental Optical Array Improved Sensor Array Advanced Signal Interpreter Precision Matter Filter Phase Armor Improved System Shield > --- WEAPON ----------- Flak Gun Helical Railgun > --- INVENTORY -------- Medium Treads Biometal Medium Treads Centrium Wheel Experimental Heat Sink Improved Coolant Injector Medium Storage Unit Experimental Energy Well Quantum Capacitor Improved Weapon Cycler Improved Remote Force Field Improved System Shield Long-range Tractor Beam Subatomic Replicator Precision Assault Rifle Advanced KE Penetrator Compact Tesla Bomb Launcher RU-N14's Throwing Claymores v3 RU-N14's Throwing Claymores v3 RU-N14's Throwing Claymores v3 RU-N14's Throwing Claymores v3 RU-N14's Throwing Claymores v3 RU-N14's Throwing Claymores v3 Vortex Lance Vortex Lance [Rating: 174] Favorites ----------- Power Cold Fusion Reactor Engine Improved Deuterium Engine Power Core Light Nuclear Core Reactor Cold Fusion Reactor Propulsion Light Treads Treads Light Treads Wheel Centrium Wheel Flight Unit Q-thruster Utility Hacking Suite Device Heat Sink Storage Large Storage Unit Processor Advanced Signal Interpreter Hackware Hacking Suite Protection Hardened Light Armor Plating Artifact Phase Armor Weapon Precision Assault Rifle Ballistic Gun Precision Assault Rifle Launcher Compact Tesla Bomb Launcher Special Weapon Improved Remote Datajack Impact Weapon Hammer Piercing Weapon Vortex Lance Build | -11 -10 -10 -8 -7 -6 -5 -4 -4 -4 -4 -3 -3 -3 -2 -1 ------- Run | Jun Mat Sub Mat Fac Fac Fac Fac Upp Upp War Pro Res Qua Res Acc Slots Evolved 18 | . . . 4 2 2 2 2 . . . . 2 . 2 2 Power 1 | . . . . 1 . . . . . . . . . . . Propulsion 6 | . . . 1 1 . . 2 . . . . . . . 2 Utility 10 | . . . 3 . 1 2 . . . . . 2 . 2 . Weapon 1 | . . . . . 1 . . . . . . . . . . Parts Attached 122 | 7 6 3 9 4 6 5 6 4 4 17 2 6 22 . 21 Power 9 | 1 1 1 1 1 2 . . . . 1 . . 1 . . Engine 4 | 1 . 1 1 1 . . . . . . . . . . . Core 1 | . 1 . . . . . . . . . . . . . . Reactor 4 | . . . . . 2 . . . . 1 . . 1 . . Propulsion 30 | 2 1 1 1 1 2 2 2 . . 2 1 1 6 . 8 Treads 20 | 2 1 1 1 1 2 2 2 . . 2 1 1 3 . 1 Leg . | . . . . . . . . . . . . . . . . Wheel 3 | . . . . . . . . . . . . . 2 . 1 Hover . | . . . . . . . . . . . . . . . . Flight 7 | . . . . . . . . . . . . . 1 . 6 Utility 44 | 2 2 1 3 . 1 3 1 1 4 11 1 2 8 . 4 Device 19 | 1 1 1 . . 1 . . 1 2 4 1 1 4 . 2 Storage 7 | 1 1 . . . . . . . . 1 . 1 2 . 1 Processor 4 | . . . . . . . . . 1 3 . . . . . Hackware 5 | . . . 1 . . . 1 . 1 . . . 1 . 1 Protection 8 | . . . 2 . . 3 . . . 3 . . . . . Artifact 1 | . . . . . . . . . . . . . 1 . . Weapon 39 | 2 2 . 4 2 1 . 3 3 . 3 . 3 7 . 9 Energy Gun . | . . . . . . . . . . . . . . . . Energy Cannon . | . . . . . . . . . . . . . . . . Ballistic Gun 22 | 2 2 . 3 2 1 . . 3 . 2 . 3 3 . 1 Ballistic Cannon . | . . . . . . . . . . . . . . . . Launcher 1 | . . . . . . . . . . . . . 1 . . Special Weapon 3 | . . . . . . . 2 . . . . . . . 1 Impact Weapon 2 | . . . 1 . . . 1 . . . . . . . . Slashing Weapon . | . . . . . . . . . . . . . . . . Piercing Weapon 11 | . . . . . . . . . . 1 . . 3 . 7 Special Melee Weapon . | . . . . . . . . . . . . . . . . Unidentified Prototypes 17 | . . . . 1 2 . . . . 7 . . 5 . 2 Parts Lost 19 | . 1 1 . . . . . . . 5 3 . 6 . 3 Power 2 | . . 1 . . . . . . . . . . 1 . . Propulsion 7 | . . . . . . . . . . 2 3 . 2 . . Utility 8 | . 1 . . . . . . . . 2 . . 3 . 2 Weapon 2 | . . . . . . . . . . 1 . . . . 1 Highest Loss Streak 5 | . 1 1 . . . . . . . 5 3 . 2 . 1 To Critical Strikes . | . . . . . . . . . . . . . . . . Average Slot Usage (%) 92 | . 94 100 92 100 96 92 100 99 100 99 73 67 85 73 69 Engine 1 | . 2 8 9 15 7 . . . . . . . . . . Core 1 | . 11 5 . . . . . . . . . . . . . Reactor 6 | . . . . . 5 11 10 10 10 10 10 9 6 4 4 Treads 25 | . 28 28 26 30 26 23 31 31 31 30 26 12 19 13 10 Wheel 1 | . . . . . . . . . . . . . 3 8 9 Device 11 | . 8 14 9 7 9 11 10 13 12 9 10 12 17 13 11 Storage 6 | . 14 14 9 7 6 5 5 5 5 5 5 4 4 4 3 Processor 4 | . . . . . . . . . 2 5 15 14 12 8 8 Hackware 5 | . . . 8 7 6 5 8 10 10 9 . . 2 4 3 Protection 7 | . . . 11 15 13 15 16 11 10 9 5 4 2 . . Ballistic Gun 15 | . 28 28 15 15 20 17 15 13 15 14 . 8 11 13 8 Naked Turns . | . . . . . . . . . . . . . . . . Heaviest Build 192 | 12 28 28 45 55 63 77 77 82 82 86 49 64 192 177 177 Greatest Support 145 | 40 40 40 60 80 92 105 145 145 133 133 116 81 144 32 126 Greatest Overweight (x) 9 | . . . . . . . . . . . 1 1 9 5 3 Average Overweight (x) . | . . . . . . . . . . . . . . 5 1 Largest Inventory Capacity 25 | 8 15 15 15 15 15 15 15 15 15 15 15 25 25 25 25 Average Capacity 16 | 6 10 15 15 15 15 15 15 15 15 15 15 15 22 25 21 Most Carried 25 | 5 8 9 15 15 15 15 14 15 15 15 15 15 25 25 25 Average Carried 14 | 2 7 8 12 14 14 15 13 14 15 14 14 13 20 25 19 Final Capacity 25 | 8 15 15 15 15 15 15 15 15 15 15 15 15 25 25 10 Final Carried 25 | 5 8 9 15 15 15 15 15 15 15 15 15 14 25 25 6 Class Distribution -------------------- 50% | Scavenger-Tank 24% | Scavenger-Mutant 8% | Scavenger-Skirmisher 7% | Scavenger-Assassin 4% | Mutant 4% | Skirmisher Dominant Class ---------------- Scavenger-Mutant | -10/Materials Scavenger-Mutant | -10/Subcaves Scavenger-Mutant | -8/Materials Scavenger-Mutant | -7/Factory Scavenger-Tank | -6/Factory Scavenger-Tank | -5/Factory Scavenger-Tank | -4/Factory Scavenger-Tank | -4/Upper Caves Scavenger-Tank | -4/Upper Caves Scavenger-Tank | -4/Warlord Scavenger-Mutant | -3/Proximity Caves Scavenger-Skirmisher | -3/Research Scavenger-Assassin | -3/Quarantine Skirmisher | -2/Research Scavenger-Skirmisher | -1/Access Resources | -11 -10 -10 -8 -7 -6 -5 -4 -4 -4 -4 -3 -3 -3 -2 -1 ----------- Run | Jun Mat Sub Mat Fac Fac Fac Fac Upp Upp War Pro Res Qua Res Acc Matter Collected 2802 | 287 256 53 90 72 158 188 163 258 41 337 . . 718 . 181 Remotely . | . . . . . . . . . . . . . . . . Salvage Created 2741 | 131 448 51 . . 305 121 176 289 . 354 . . 776 . 90 Parts 146 | 6 33 4 . . 16 5 14 13 . 15 . . 40 . . Haulers Intercepted 4 | . 1 . . . 1 1 . . . . . . 1 . . Recyclers Shooed 5 | . 1 . . . 2 1 1 . . . . . . . . Parts Field Recycled . | . . . . . . . . . . . . . . . . Retrieved Matter . | . . . . . . . . . . . . . . . . Parts Self-Destructed 17 | . . 2 . . . . . 15 . . . . . . . Prevented . | . . . . . . . . . . . . . . . . Kills | -11 -10 -10 -8 -7 -6 -5 -4 -4 -4 -4 -3 -3 -3 -2 -1 ------- Run | Jun Mat Sub Mat Fac Fac Fac Fac Upp Upp War Pro Res Qua Res Acc Combat Hostiles Destroyed 48 | . 10 1 . . 6 2 3 4 . 5 . . 14 . 3 Melee 4 | . . . . . . 1 . . . . . . 3 . . Guns 42 | . 10 1 . . 6 1 3 4 . 5 . . 11 . 1 AOE 2 | . . . . . . . . . . . . . . . 2 Classes Destroyed 16 | 2 5 1 . . 1 1 1 1 . 3 . . . . 1 Worker 3 | . 1 . . . . . 2 . . . . . . . . Builder 2 | . . . . . 1 . 1 . . . . . . . . Tunneler 2 | 2 . . . . . . . . . . . . . . . Hauler 4 | . 1 . . . 1 1 . . . . . . 1 . . Recycler 2 | 1 1 . . . . . . . . . . . . . . Operator 1 | . 1 . . . . . . . . . . . . . . Swarmer 14 | . 5 . . . 4 1 . . . . . . 4 . . Cutter 1 | . . . . . . 1 . . . . . . . . . Saboteur 1 | . . . . . . . . . . 1 . . . . . Grunt 11 | . 5 . . . 1 . 1 2 . 1 . . . . 1 Brawler 3 | . . . . . . . . 1 . 1 . . 1 . . Duelist 2 | . . . . . . . . . . 1 . . 1 . . Sentry 2 | . . 1 . . 1 . . . . . . . . . . Specialist 1 | . . . . . . . . . . 1 . . . . . Hunter 2 | . . . . . . . . . . . . . . . 2 Programmer 11 | . . . . . . . 2 1 . . . . 8 . . Best Kill Streak 4 | 3 4 1 . . 4 1 2 3 . 3 . . 4 . 2 Combat Bots Only 4 | . 3 1 . . 4 1 2 3 . 3 . . 4 . 2 Max Kills in Single Turn 2 | 1 2 1 . . 2 1 1 1 . 1 . . 1 . 2 Gunslinging 1 | . . . . . 1 . . . . . . . . . . Exploded 2 | . . . . . . . . . . . . . . . 2 Melee 1 | . . . . . . 1 . . . . . . 1 . . Uniques/NPCs Destroyed . | . . . . . . . . . . . . . . . . Combat | -11 -10 -10 -8 -7 -6 -5 -4 -4 -4 -4 -3 -3 -3 -2 -1 -------- Run | Jun Mat Sub Mat Fac Fac Fac Fac Upp Upp War Pro Res Qua Res Acc Damage Taken 5916 | . 474 98 . 318 334 43 479 212 . 1636 138 . 1438 . 746 Core 912 | . 100 38 . 137 22 . 19 . . 161 24 . 191 . 220 Absorbed by Shields 1161 | . . . . . . . . 60 . 273 . . 828 . . Redirected to Core 235 | . . . . . . . . . . . . . 84 . 151 Regen/Repaired (Parts) 180 | . . . . . . . . . . 180 . . . . . Core Remaining (%) 87 | 100 . 44 100 80 97 100 . . . . 82 . 85 100 86 Volleys Fired 184 | 5 66 3 . 4 16 4 13 12 . 15 . . 40 . 6 Largest 3 | 2 2 2 . 2 3 3 3 3 . 3 . . 3 . 3 Hottest 94 | 40 40 40 . 56 84 84 84 84 . 94 . . 94 . 94 Shots Fired 462 | 10 132 6 . 8 48 12 39 36 . 45 . . 112 . 14 Gun 460 | 10 132 6 . 8 48 12 39 36 . 45 . . 112 . 12 Cannon . | . . . . . . . . . . . . . . . . Launcher . | . . . . . . . . . . . . . . . . Special 2 | . . . . . . . . . . . . . . . 2 Kinetic 460 | 10 132 6 . 8 48 12 39 36 . 45 . . 112 . 12 Thermal . | . . . . . . . . . . . . . . . . Explosive 2 | . . . . . . . . . . . . . . . 2 Electromagnetic . | . . . . . . . . . . . . . . . . Robot Hit Streak 17 | 2 13 5 . 7 13 4 8 10 . 17 . . 9 . 4 Robot Miss Streak 7 | 1 5 2 . 1 3 4 4 2 . 4 . . 7 . 2 Penetration Max 1 | . . . . . . . . . . 1 . . . . . Secondary Targets 5 | . 2 . . . 1 . 1 . . 1 . . . . . Max Gunslinging Chain 1 | . 1 . . . 1 . 1 . . 1 . . . . . Shots Hit Robots 341 | 5 85 5 . 6 40 10 34 28 . 33 . . 86 . 9 Core Hits 196 | 4 28 3 . 1 33 7 26 10 . 17 . . 56 . 11 Critical Kills 2 | . 1 . . . . . . . . . . . . . 1 Critical Parts Destroyed 1 | . . . . 1 . . . . . . . . . . . Critical Strikes 4 | . 1 . . 1 . . . . . 1 . . . . 1 Destroy 4 | . 1 . . 1 . . . . . 1 . . . . 1 Melee Attacks 31 | . . . 3 . . . . . . 1 . . 23 . 4 Impact 3 | . . . 3 . . . . . . . . . . . . Slashing . | . . . . . . . . . . . . . . . . Piercing . | . . . . . . . . . . . . . . . . Entropic 28 | . . . . . . . . . . 1 . . 23 . 4 Sneak Attacks . | . . . . . . . . . . . . . . . . Combat Hostiles . | . . . . . . . . . . . . . . . . Follow-up Attacks . | . . . . . . . . . . . . . . . . Damage Inflicted 7328 | 57 842 35 . 121 911 210 870 550 12 700 . . 2345 . 675 Guns 6130 | 57 826 35 . 121 888 198 853 550 . 684 . . 1718 . 200 Cannons . | . . . . . . . . . . . . . . . . Explosions 475 | . . . . . . . . . . . . . . . 475 Melee 586 | . . . . . . . . . . . . . 586 . . Ramming 137 | . 16 . . . 23 12 17 . 12 16 . . 41 . . Kinetic 6130 | 57 826 35 . 121 888 198 853 550 . 684 . . 1718 . 200 Thermal . | . . . . . . . . . . . . . . . . Explosive 475 | . . . . . . . . . . . . . . . 475 Electromagnetic . | . . . . . . . . . . . . . . . . Impact . | . . . . . . . . . . . . . . . . Slashing . | . . . . . . . . . . . . . . . . Piercing . | . . . . . . . . . . . . . . . . Entropic 586 | . . . . . . . . . . . . . 586 . . Highest Corruption 20 | . . . . . . . 7 7 7 7 2 . 20 . . Average Corruption 7 | . . . . . . . 5 7 7 6 1 . 12 . . Corruption Purged . | . . . . . . . . . . . . . . . . Corruption Blocked . | . . . . . . . . . . . . . . . . Effects 70 | . . . . . . . 1 24 10 2 2 . 31 . . Message Errors 27 | . . . . . . . 1 10 3 1 1 . 11 . . Matter Fused 12 | . . . . . . . . 2 2 . 1 . 7 . . Heat Flow Errors 8 | . . . . . . . . 3 . 1 . . 4 . . Energy Discharges 7 | . . . . . . . . 4 . . . . 3 . . Parts Rejected 1 | . . . . . . . . . . . . . 1 . . Parts Fused 2 | . . . . . . . . 1 . . . . 1 . . Data Loss (minor) 7 | . . . . . . . . 2 3 . . . 2 . . Data Loss (major) 4 | . . . . . . . . 2 2 . . . . . . Misfires 1 | . . . . . . . . . . . . . 1 . . Weapon Failures 1 | . . . . . . . . . . . . . 1 . . Overload Shots . | . . . . . . . . . . . . . . . . Overflow Damage 47 | . . . . . . . . . . . . . 37 . 10 Projectiles . | . . . . . . . . . . . . . . . . Explosions 10 | . . . . . . . . . . . . . . . 10 Melee 37 | . . . . . . . . . . . . . 37 . . Knockbacks . | . . . . . . . . . . . . . . . . Impact . | . . . . . . . . . . . . . . . . Kinetic . | . . . . . . . . . . . . . . . . Secondary . | . . . . . . . . . . . . . . . . Self-Inflicted Damage 112 | . . . . . . . . . . . . . . . 112 Shots 1 | . . . . . . . . . . . . . . . 1 Rammed 24 | 1 3 . . . 5 2 2 . 3 1 . . 7 . . Targets Rammed 27 | 1 3 . . . 5 3 4 . 3 1 . . 7 . . Kicked . | . . . . . . . . . . . . . . . . Crushed 3 | . . . . . . 1 2 . . . . . . . . Highest Temperature 214 | . 12 . . 45 27 . . 124 . 86 . . 214 . . Average Temperature 22 | . 5 . . 17 13 . . 55 . 41 . . 88 . . Received Heat Transfer 712 | . 174 27 . 81 81 . 36 42 . 217 . . . . 54 Siege Activations . | . . . . . . . . . . . . . . . . Robots Corrupted . | . . . . . . . . . . . . . . . . Combat Hostiles . | . . . . . . . . . . . . . . . . Parts Fried . | . . . . . . . . . . . . . . . . Impact Corruptions . | . . . . . . . . . . . . . . . . Robots Melted . | . . . . . . . . . . . . . . . . Combat Hostiles . | . . . . . . . . . . . . . . . . Parts Melted 1 | . . . . . . . . . . 1 . . . . . Heat Transferred . | . . . . . . . . . . . . . . . . Parts Sabotaged 2 | . . . . . . . . . . 2 . . . . . Parts Stolen . | . . . . . . . . . . . . . . . . Parts Stripped . | . . . . . . . . . . . . . . . . Power Chain Reactions . | . . . . . . . . . . . . . . . . Missiles Intercepted . | . . . . . . . . . . . . . . . . Alert | -11 -10 -10 -8 -7 -6 -5 -4 -4 -4 -4 -3 -3 -3 -2 -1 ------- Run | Jun Mat Sub Mat Fac Fac Fac Fac Upp Upp War Pro Res Qua Res Acc Peak Influence 326 | 15 326 . 35 15 151 115 123 . . . . 300 282 163 234 Initial 300 | . 9 . 18 15 7 73 29 . . . . 300 168 158 97 Average 95 | 4 124 . 21 15 39 57 38 . . . . 300 134 160 139 Maximum Alert Level 1 | . 1 . . . . . . . . . . 1 1 . 1 Low Security (%) 87 | 100 83 . 100 100 100 100 100 . . . . . 75 100 91 Level 1 12 | . 16 . . . . . . . . . . 100 24 . 8 Level 2 . | . . . . . . . . . . . . . . . . Level 3 . | . . . . . . . . . . . . . . . . Level 4 . | . . . . . . . . . . . . . . . . Level 5 . | . . . . . . . . . . . . . . . . High Security . | . . . . . . . . . . . . . . . . Max Security . | . . . . . . . . . . . . . . . . Squads Dispatched 26 | . 1 . 3 1 6 2 3 . . . . . 6 1 3 Investigation 2 | . . . 2 . . . . . . . . . . . . Extermination 4 | . . . . . . . 1 . . . . . 3 . . Reinforcement 11 | . 1 . 1 1 3 2 2 . . . . . . 1 . Assault . | . . . . . . . . . . . . . . . . Garrison 9 | . . . . . 3 . . . . . . . 3 . 3 Intercept . | . . . . . . . . . . . . . . . . Searches Triggered . | . . . . . . . . . . . . . . . . Construction Impeded 1 | . . . . . 1 . . . . . . . . . . Haulers Reinforced 3 | . . . . 1 1 . . . . . . . . 1 . Active Scanning Responses . | . . . . . . . . . . . . . . . . Cargo Convoy Interrupts . | . . . . . . . . . . . . . . . . Stealth | -11 -10 -10 -8 -7 -6 -5 -4 -4 -4 -4 -3 -3 -3 -2 -1 --------- Run | Jun Mat Sub Mat Fac Fac Fac Fac Upp Upp War Pro Res Qua Res Acc Distress Signals 10 | . 3 . 1 . . . . . . 2 . . . 4 . Communications Jammed . | . . . . . . . . . . . . . . . . Distress Signals . | . . . . . . . . . . . . . . . . Times Spotted 172 | . 21 1 1 10 15 13 21 4 . 45 7 . 23 . 11 Peak Tracking Total 11 | . 5 1 2 3 5 4 4 2 . 11 2 . 4 . 5 Tactical Retreats 8 | . 2 . 1 . 1 1 2 . . . . . 1 . . Traps | -11 -10 -10 -8 -7 -6 -5 -4 -4 -4 -4 -3 -3 -3 -2 -1 ------- Run | Jun Mat Sub Mat Fac Fac Fac Fac Upp Upp War Pro Res Qua Res Acc Traps Triggered 3 | . . . 1 1 . . . . . . . . 1 . . Indirectly . | . . . . . . . . . . . . . . . . Trap Hack Attempts . | . . . . . . . . . . . . . . . . Triggered . | . . . . . . . . . . . . . . . . Disarmed . | . . . . . . . . . . . . . . . . Reprogrammed . | . . . . . . . . . . . . . . . . Reused . | . . . . . . . . . . . . . . . . Traps Extracted . | . . . . . . . . . . . . . . . . Installed . | . . . . . . . . . . . . . . . . Triggered 5 | . . . . . . . . . . 5 . . . . . Machines | -11 -10 -10 -8 -7 -6 -5 -4 -4 -4 -4 -3 -3 -3 -2 -1 ---------- Run | Jun Mat Sub Mat Fac Fac Fac Fac Upp Upp War Pro Res Qua Res Acc Machines Disabled 7 | . . . . . . . . . . 1 . . 4 . 2 Max in Single Turn 1 | . . . . . . . . . . 1 . . 1 . 1 Garrison Access 1 | . . . . 1 . . . . . . . . . . . Energy Cycler 1 | . . . . . . . . . . . . . . . 1 Machines Repaired . | . . . . . . . . . . . . . . . . Machines Sabotaged . | . . . . . . . . . . . . . . . . Overloaded Fab Kills . | . . . . . . . . . . . . . . . . Hacking | -11 -10 -10 -8 -7 -6 -5 -4 -4 -4 -4 -3 -3 -3 -2 -1 --------- Run | Jun Mat Sub Mat Fac Fac Fac Fac Upp Upp War Pro Res Qua Res Acc Machines Accessed 22 | . 5 1 2 1 . 1 1 1 . 1 . 1 6 1 1 Terminals 17 | . 5 . 2 . . 1 1 . . . . . 6 1 1 Fabricators 1 | . . . . . . . . . . . . 1 . . . Repair Stations . | . . . . . . . . . . . . . . . . Recycling Units . | . . . . . . . . . . . . . . . . Scanalyzers . | . . . . . . . . . . . . . . . . Garrison Access 1 | . . . . 1 . . . . . . . . . . . Total Hacks 49 | . 14 4 7 1 . 1 3 1 . 1 . 1 13 2 1 Successful 23 | . 7 4 2 1 . . 2 1 . 1 . . 4 1 . Failed 26 | . 7 . 5 . . 1 1 . . . . 1 9 1 1 Catastrophic 7 | . 1 . 1 . . 1 1 . . . . . 2 . 1 Database Lockouts . | . . . . . . . . . . . . . . . . Manual 15 | . 9 . 4 . . . 1 . . . . . . . 1 Terminals 41 | . 14 . 7 . . 1 3 . . . . . 13 2 1 Fabricators 1 | . . . . . . . . . . . . 1 . . . Repair Stations . | . . . . . . . . . . . . . . . . Recycling Units . | . . . . . . . . . . . . . . . . Scanalyzers . | . . . . . . . . . . . . . . . . Garrison Access 1 | . . . . 1 . . . . . . . . . . . Terminal Hacks 22 | . 7 4 2 . . . 2 1 . 1 . . 4 1 . Record 4 | . . 4 . . . . . . . . . . . . . Robot Analysis 3 | . 3 . . . . . . . . . . . . . . Open Door 2 | . . . . . . . . 1 . 1 . . . . . Open DSF 1 | . . . . . . . . . . . . . . 1 . Terminal Index 1 | . . . . . . . . . . . . . 1 . . Alert Level 1 | . . . . . . . . . . . . . 1 . . Unreport Threat 1 | . . . . . . . . . . . . . 1 . . Locate Traps 4 | . 2 . . . . . 1 . . . . . 1 . . Recall Reinforcements 1 | . . . 1 . . . . . . . . . . . . Zone Layout 4 | . 2 . 1 . . . 1 . . . . . . . . Fabricator Hacks . | . . . . . . . . . . . . . . . . Repair Station Hacks . | . . . . . . . . . . . . . . . . Recycling Unit Hacks . | . . . . . . . . . . . . . . . . Scanalyzer . | . . . . . . . . . . . . . . . . Garrison Access Hacks 1 | . . . . 1 . . . . . . . . . . . Seal Access 1 | . . . . 1 . . . . . . . . . . . Unauthorized Hacks . | . . . . . . . . . . . . . . . . Terminals . | . . . . . . . . . . . . . . . . Fabricators . | . . . . . . . . . . . . . . . . Repair Stations . | . . . . . . . . . . . . . . . . Recycling Units . | . . . . . . . . . . . . . . . . Scanalyzers . | . . . . . . . . . . . . . . . . Garrison Access . | . . . . . . . . . . . . . . . . Data Cores Recovered . | . . . . . . . . . . . . . . . . Used . | . . . . . . . . . . . . . . . . Hacking Detections 17 | . 5 . 2 . . 1 1 . . . . 1 6 . 1 Full Trace Events 1 | . . . 1 . . . . . . . . . . . . Feedback Events . | . . . . . . . . . . . . . . . . Feedback Blocked . | . . . . . . . . . . . . . . . . Robot Schematics Acquired . | . . . . . . . . . . . . . . . . Robots Built . | . . . . . . . . . . . . . . . . Authchips . | . . . . . . . . . . . . . . . . Time . | . . . . . . . . . . . . . . . . Total Robot Build Rating . | . . . . . . . . . . . . . . . . Part Schematics Acquired . | . . . . . . . . . . . . . . . . Parts Built . | . . . . . . . . . . . . . . . . Authchips . | . . . . . . . . . . . . . . . . Time . | . . . . . . . . . . . . . . . . Total Part Build Rating . | . . . . . . . . . . . . . . . . Parts Repaired . | . . . . . . . . . . . . . . . . Time . | . . . . . . . . . . . . . . . . Parts Recycled . | . . . . . . . . . . . . . . . . Recycled Matter . | . . . . . . . . . . . . . . . . Retrieved Matter . | . . . . . . . . . . . . . . . . Retrieved Components . | . . . . . . . . . . . . . . . . Parts Scanalyzed . | . . . . . . . . . . . . . . . . Part Schematics Acquired . | . . . . . . . . . . . . . . . . Parts Damaged . | . . . . . . . . . . . . . . . . Bothacking | -11 -10 -10 -8 -7 -6 -5 -4 -4 -4 -4 -3 -3 -3 -2 -1 ------------ Run | Jun Mat Sub Mat Fac Fac Fac Fac Upp Upp War Pro Res Qua Res Acc Used RIF Installer . | . . . . . . . . . . . . . . . . Robots Hacked . | . . . . . . . . . . . . . . . . Non-combat . | . . . . . . . . . . . . . . . . Combat . | . . . . . . . . . . . . . . . . Robot Hacks Applied . | . . . . . . . . . . . . . . . . Relay Couplers Released . | . . . . . . . . . . . . . . . . Fabnet Peak Effective % . | . . . . . . . . . . . . . . . . Robots Rewired . | . . . . . . . . . . . . . . . . Allies Hacked . | . . . . . . . . . . . . . . . . Hacks Repelled . | . . . . . . . . . . . . . . . . Allies | -11 -10 -10 -8 -7 -6 -5 -4 -4 -4 -4 -3 -3 -3 -2 -1 -------- Run | Jun Mat Sub Mat Fac Fac Fac Fac Upp Upp War Pro Res Qua Res Acc Total Allies . | . . . . . . . . . . . . . . . . Largest Group . | . . . . . . . . . . . . . . . . Highest-Rated Group . | . . . . . . . . . . . . . . . . Highest-Rated Ally . | . . . . . . . . . . . . . . . . Total Orders . | . . . . . . . . . . . . . . . . Ally Attacks . | . . . . . . . . . . . . . . . . Total Damage . | . . . . . . . . . . . . . . . . Kills . | . . . . . . . . . . . . . . . . Allies Corrupted . | . . . . . . . . . . . . . . . . Allies Melted . | . . . . . . . . . . . . . . . . Intel | -11 -10 -10 -8 -7 -6 -5 -4 -4 -4 -4 -3 -3 -3 -2 -1 ------- Run | Jun Mat Sub Mat Fac Fac Fac Fac Upp Upp War Pro Res Qua Res Acc Robot Analysis Total 3 | . 3 . . . . . . . . . . . . . . Derelict Logs Recovered 3 | . . 1 . . . . . 2 . . . . . . . Drone Launches . | . . . . . . . . . . . . . . . . Drone Recoveries . | . . . . . . . . . . . . . . . . Exploration | -11 -10 -10 -8 -7 -6 -5 -4 -4 -4 -4 -3 -3 -3 -2 -1 ------------- Run | Jun Mat Sub Mat Fac Fac Fac Fac Upp Upp War Pro Res Qua Res Acc Turns Passed 8332 | 94 1075 191 205 322 499 630 592 826 368 1130 416 126 1390 149 319 Spaces Moved 4137 | 42 386 113 111 169 229 305 215 487 223 603 259 70 614 77 234 Core 3 | 3 . . . . . . . . . . . . . . . Treads 3775 | 39 386 113 111 169 229 305 215 487 223 603 259 70 563 . 3 Legs . | . . . . . . . . . . . . . . . . Wheels 255 | . . . . . . . . . . . . . 51 77 127 Hover . | . . . . . . . . . . . . . . . . Flight 104 | . . . . . . . . . . . . . . . 104 Fastest Speed 25 | 50 160 160 160 160 160 160 160 160 160 160 160 155 152 190 25 Average Speed 160 | 152 160 160 160 160 160 160 160 160 160 160 160 168 180 190 96 Slowest Speed 270 | 160 160 160 160 160 160 160 160 160 160 160 240 240 270 190 232 Overloaded Moves . | . . . . . . . . . . . . . . . . Propulsion Burnouts . | . . . . . . . . . . . . . . . . Robots Hopped 1 | . . . . . . . . . . . . . . . 1 Cave-ins Triggered . | . . . . . . . . . . . . . . . . Exploration Rate (%) 29 | 5 87 11 15 5 7 11 8 63 45 78 51 2 64 3 12 Regions Visited 15 Branch Regions 6 Pre-discovered Areas 2 | . . 1 . . . . . 1 . . . . . . . Known Exits Taken 6 | . . . . . . . . . 1 1 1 1 1 1 . Unknown Exits Taken 9 | 1 1 1 1 1 1 1 1 1 . . . . . . . Scrap Searched 5 | . . . . . . . . 3 2 . . . . . . Spaces Dug 16 | . . . 2 . . . . . . . . . 12 . 2 Terrain Destroyed 41 | . . . 2 . . . . . . 3 . . 24 . 12 Melee 13 | . . . 2 . . . . . . . . . 9 . 2 Projectile 18 | . . . . . . . . . . 3 . . 15 . . AOE 10 | . . . . . . . . . . . . . . . 10 Terrain Rammed . | . . . . . . . . . . . . . . . . Walls Destroyed . | . . . . . . . . . . . . . . . . Machines Disabled . | . . . . . . . . . . . . . . . . Actions | -11 -10 -10 -8 -7 -6 -5 -4 -4 -4 -4 -3 -3 -3 -2 -1 --------- Run | Jun Mat Sub Mat Fac Fac Fac Fac Upp Upp War Pro Res Qua Res Acc Total 5430 | 59 731 118 131 215 325 437 430 506 232 736 262 77 775 81 315 Wait 799 | . 255 . . 34 63 118 191 3 . 65 . . 48 3 19 Move 4121 | 41 385 112 110 168 228 305 215 486 222 602 258 69 613 76 231 Hop 1 | . . . . . . . . . . . . . . . 1 Pick Up 59 | 5 7 . 7 2 2 . 1 . . 11 . 1 13 1 9 Fast Attach 54 | 7 2 . 2 1 2 2 . 1 3 10 . 3 11 . 10 Attach 25 | . . 1 2 2 1 . 2 1 . 1 2 3 3 . 7 Detach 23 | . . . . 1 . . 1 1 1 3 2 1 3 . 10 Swap 44 | . 4 2 5 1 3 3 4 2 1 6 . . 8 . 5 Drop 62 | . 9 . 2 2 5 3 . . 2 19 . . 6 1 13 Fire 184 | 5 66 3 . 4 16 4 13 12 . 15 . . 40 . 6 Melee 31 | . . . 3 . . . . . . 1 . . 23 . 4 Ram . | . . . . . . . . . . . . . . . . Kick . | . . . . . . . . . . . . . . . . Crush 25 | 1 3 . . . 5 2 3 . 3 1 . . 7 . . Escape Stasis . | . . . . . . . . . . . . . . . . Rewire 2 | . . . . . . . . . . 2 . . . . . Trap . | . . . . . . . . . . . . . . . . Miscellaneous . | . . . . . . . . . . . . . . . . Route ------- -11/Junkyard -10/Materials (discovered 4 exits: [*Mat x3] / *Sub) -10/Subcaves -8/Materials (discovered 2 exits: *Fac / Sto) -7/Factory -6/Factory -5/Factory -4/Factory -4/Upper Caves -4/Upper Caves -4/Warlord -3/Proximity Caves -3/Research -3/Quarantine -2/Research -1/Access To Epsilon Eridani History --------- Turn | Location | Event 12 | -11/Junkyard | Discovered new exit (range 14) 95 | -11/Junkyard | Entered Materials 149 | -10/Materials | Discovered new exit (range 15) 315 | -10/Materials | Build established: Mutant 475 | -10/Materials | Discovered new exit (range 14) 697 | -10/Materials | Build established: Scavenger-Mutant 813 | -10/Materials | Discovered new exit (range 3) 1151 | -10/Materials | Discovered new exit (range 10) 1170 | -10/Materials | Entered Subcaves 1301 | -10/Subcaves | Discovered new exit (range 15) 1315 | -10/Subcaves | Visited Clippyterm 1320 | -10/Subcaves | Learned location of Section 7 (-2) 1320 | -10/Subcaves | Learned Factory fabricator intel 1358 | -10/Subcaves | Core integrity fell below 50% 1361 | -10/Subcaves | Entered Materials 1361 | -8/Materials | Evolved 4 slots: Propulsion x1, Utility x3 1362 | -8/Materials | Identified exit to Storage 1493 | -8/Materials | Met 7R-MNS 1534 | -8/Materials | Discovered new exit (range 15) 1566 | -8/Materials | Entered Factory 1566 | -7/Factory | Evolved 2 slots: Power x1, Propulsion x1 1567 | -7/Factory | Caught up to 7R-MNS 1567 | -7/Factory | Loaded intel: 6 fabricator locations 1883 | -7/Factory | Discovered new exit (range 3) 1888 | -7/Factory | Entered another Factory area 1888 | -6/Factory | Evolved 2 slots: Utility x1, Weapon x1 1889 | -6/Factory | Caught up to 7R-MNS 2067 | -6/Factory | Garrison activated, responded to threat 2183 | -6/Factory | Build established: Scavenger-Tank 2183 | -6/Factory | Spotted B-75 Beast 2217 | -6/Factory | Discovered new exit (range 13) 2387 | -6/Factory | Entered another Factory area 2387 | -5/Factory | Evolved 2 slots: Utility x2 2388 | -5/Factory | Caught up to 7R-MNS 2696 | -5/Factory | Spotted B-75 Beast 2986 | -5/Factory | Discovered new exit (range 5) 3017 | -5/Factory | Entered another Factory area 3017 | -4/Factory | Evolved 2 slots: Propulsion x2 3018 | -4/Factory | Caught up to 7R-MNS 3552 | -4/Factory | Discovered new exit (range 7) 3559 | -4/Factory | 7R-MNS successfully reached the Upper Caves 3609 | -4/Factory | Entered Upper Caves 4089 | -4/Upper Caves | Learned location of Testing (-2) 4227 | -4/Upper Caves | Learned Research emergency access door positions 4425 | -4/Upper Caves | Discovered new exit (range 5) 4435 | -4/Upper Caves | Entered another Upper Caves area 4723 | -4/Upper Caves | Discovered new exit (range 6) 4729 | -4/Upper Caves | Identified exit to Warlord 4803 | -4/Upper Caves | Entered Warlord 4858 | -4/Warlord | System corruption cleaned by Quarantine Array 5197 | -4/Warlord | Found Prototype Special Weapon 5200 | -4/Warlord | Found Prototype Special Weapon 5203 | -4/Warlord | Found Prototype Special Weapon 5206 | -4/Warlord | Found Prototype Special Weapon 5209 | -4/Warlord | Found Prototype Special Weapon 5212 | -4/Warlord | Found Prototype Special Weapon 5395 | -4/Warlord | Visited the Vortex Lab 5407 | -4/Warlord | Found Prototype Piercing Weapon 5408 | -4/Warlord | Warlord's base attacked by MAIN.C 5410 | -4/Warlord | Found Prototype Piercing Weapon 5535 | -4/Warlord | Met Warlord 5552 | -4/Warlord | Identified Vortex Lance (x2) 5578 | -4/Warlord | Found Prototype Processor 5578 | -4/Warlord | Identified Exp. Core Analyzer 5599 | -4/Warlord | Found Prototype Reactor 5758 | -4/Warlord | Warlord forces counterattacked 5773 | -4/Warlord | Spotted Striker 5814 | -4/Warlord | Spotted Executioner 5841 | -4/Warlord | Found Exp. Core Analyzer 5885 | -4/Warlord | Spotted Striker 5887 | -4/Warlord | Spotted Executioner 5907 | -4/Warlord | Discovered new exit (range 8) 5909 | -4/Warlord | Spotted Executioner 5909 | -4/Warlord | Spotted B-90 Cyclops 5909 | -4/Warlord | Spotted Executioner 5931 | -4/Warlord | Identified exit to Proximity Caves 5933 | -4/Warlord | Entered Proximity Caves 5936 | -3/Proximity Caves | Spotter reported a threat 5936 | -3/Proximity Caves | Spotter reported a threat 5960 | -3/Proximity Caves | Lost 5 parts (2n2u1w) 6223 | -3/Proximity Caves | Build established: Scavenger-Mutant 6322 | -3/Proximity Caves | Discovered new exit (range 17) 6348 | -3/Proximity Caves | Identified exit to Research 6349 | -3/Proximity Caves | Entered Research 6349 | -3/Research | Evolved 2 slots: Utility x2 6379 | -3/Research | Lost 3 parts (3n) 6407 | -3/Research | Discovered new exit (range 4) 6411 | -3/Research | Identified exit to Quarantine 6447 | -3/Research | Found Prototype Launcher 6475 | -3/Research | Entered Quarantine 6692 | -3/Quarantine | Cryocooling Duct disabled 6707 | -3/Quarantine | Ambient heat levels rising (+20) 6707 | -3/Quarantine | Non-combat units ordered to evacuate 6922 | -3/Quarantine | Found Quantum Capacitor 7186 | -3/Quarantine | Identified Vortex Chain Reactor 7234 | -3/Quarantine | Garrison activated, responded to threat 7276 | -3/Quarantine | System corruption reached 10% 7441 | -3/Quarantine | Found Alien Artifact 7614 | -3/Quarantine | Found Alien Artifact 7614 | -3/Quarantine | Identified Phase Armor 7730 | -3/Quarantine | Build established: Scavenger-Assassin 7749 | -3/Quarantine | Identified Com. Tesla Bomb Launcher 7846 | -3/Quarantine | Discovered new exit (range 11) 7861 | -3/Quarantine | Spotted Alpha 7 7863 | -3/Quarantine | Identified exit to Research 7865 | -3/Quarantine | Entered Research 7865 | -2/Research | Warlord forces began assault on 0b10 7865 | -2/Research | Evolved 2 slots: Utility x2 7920 | -2/Research | Discovered new exit (range 12) 7975 | -2/Research | Research machine network offline 7982 | -2/Research | Identified exit to Access 8014 | -2/Research | Entered Access 8014 | -1/Access | Evolved 2 slots: Propulsion x2 8053 | -1/Access | Garrison activated, responded to threat 8054 | -1/Access | Build established: Skirmisher 8186 | -1/Access | Energy Cycler disabled 8268 | -1/Access | Identified RU-N14's Throwing Claymores v3 8326 | -1/Access | Discovered new exit (range 6) 8327 | -1/Access | Identified exit to Surface 8327 | -1/Access | Identified Subatomic Replicator 8327 | -1/Access | Used Subatomic Replicator to replicate Vortex Lance 8333 | *** | Escaped! Last Messages --------------- 08281_ Acquired Exp. Heat Sink. 08281_ K-01 Serf collects debris. 08283_ Acquired Med. Storage Unit. 08286_ Acquired Imp. System Shield. 08287_ Acquired Alien Artifact. 08289_ Acquired RU-N14's Throwing Claymores v3. 08292_ Acquired 38 matter. 08293_ Acquired Adv. Sensor Array. 08313_ O-32 Director: "IFF HANDSHAKE FAILED. SECURING TERMINAL." 08315_ Connecting with Terminal... 08316_ Terminal disabled. 08326_ The Access Shell folds into the floor. 08326_ EXIT=FOUND 08327_ EXIT=IDENTIFIED: SURFACE 08327_ Dropped Vortex Lance. 08327_ Identified Subatomic Replicator. 08327_ Replicated Vortex Lance. 08328_ Acquired Vortex Lance. 08332_ Adv. Sensor Array destroyed. 08332_ Critical hit (Burn: +37). Map ----- +----------------------------------------------------+ | ??????????????????????????????????????????????# | | ??????????????????????????????????????????????# | | ??????????????????????????????????????????????# | | ??????????????????????????????????????????????# | | ??????????????????????????????????????????????# | | ???????????????????????????????????????????? + | | ??????????????????????????????????????????######## | | ??????????????????????????????????????????? ?? | | ???????????????????????????????????????????[ ?? | | ???????????????????????????????????????????? "" | | ???????????????????????????????????????????? "" | | ????????????????????????????????????????????? """" | | ????????????????????????????????????????????? """" | | ?????????????????????????????????????????????? "" | | ?????????????????????????????????????????????? "" | | ??????????????????????????????????????????????? | | ??????????????????????????????????????????????? | | ???????????????????????????????????????????????? | | ???????????????????????????????????????????????? | | ???????????????????????????????????????????######+ | | ???????????????????#""""""""""#????????????# | | ???????????????????# #????????????# | | ???????????????????# #????????????# ###/ | | ???????????????????# #????????????# ## | | ???????????????????# "" #????????????# ## | | ???????????????????# "@ #????????????# ## | | ???????????????????# #???????????## ## | | ???????????????????# #???????????? # | | ???????????????????# #???????????? # | | ??????????????????## ##??????????? # | | ??????????????????# #??????????? # | | ??????????????????##"" ##???????????# ## | | ???????????????????#"" #????????????# ## | | ???????????????????#"" #????????????# ## | | ???????????????????#T #????????????# ## | | ???????????????????#"" #????????????# ## | | ???????????????????#"" #????????????# # ## | | ???????????#########""g t############## ### | | ?????? g | | ?????? A w | | ??????#/###########################+########+##### | | ????????????????????????????????? ????# [ | | ????????????????????????????????# ???# | | ????????????????????????????????# ??# "" | | ????????????????????????????????# ! ? ?# """ | | ????????????????????????????????# # " | | ????????????????????????????????# ? # """ | | ????????????????????????????????# ?? # "" | | ????????????????????????????????# ??? # | | ????????????????????????????????#######??## ! | +----------------------------------------------------+ Best States ------------- Heat Dissipation 83 Energy Generation 55 Energy Capacity 700 Matter Stores 300 Matter Capacity 300 Sight Range 23 Robot Scan Range 16 Terrain Scan Density 10 Additional Mass Support 12 Armor Coverage 675 Phase Shifting 5 Evasion (%) 65 Core Analysis 8 Recoil Reduction 6 Matter Filtering 50 Offensive Hacking 20 Defensive Hacking 12 Item Schematics ----------------- None Robot Schematics ------------------ None Fabricated ------------ Nothing Alien Tech Used ----------------- Phase Armor Subatomic Replicator Achievements -------------- None Challenges ------------ None Game ------ Seed MultinovaDamperFlakker Manual? 0 Play Time 01:02:12 Cumulative 643.9 hours Start 2023.07.06 @ 19:51:43 End 2023.07.06 @ 21:11:40 Sessions 1 Manual Loads 0 Difficulty Rogue Special Mode None Game No. 565 Rogue 350 Adventurer 112 Explorer 103 Win Type 0 Total 43 Types 27/0/8/3/0/0/4/1/0 Lore% 86 Gallery% 91 Achievement% 82 Wizard Run 0 Options --------- ASCII 1 Keyboard 1 Movement Vi Keybinds 1 Fullscreen 2 Font 20/Terminus Map View 66x52 Tactical HUD 1 Map Filters NONE Filters NONE Steam 0 RUN: 4ca38138-034f-4235-b54d-4bccb95a7105